bitfinex/quotes_ETHUSD_20250724
["timestamp","ask_amount","ask_price","bid_price","bid_amount"]
[1753353398699,0.04,3603.9,3602.8,5.92118095]
[1753353398700,0.04,3603.9,3602.8,0.98718095]
[1753353398973,3.59144805,3603.7,3603.2,0.55]
[1753353399146,2.77509329,3603.5,3602.8,2.98777386]
[1753353399355,0.85118945,3603.4,3602.9,4.468]
[1753353399555,0.474,3603.3,3602.9,4.468]
[1753353399977,0.8165,3603.4,3602.8,2.77555537]
[1753353399978,0.474,3603.2,3602.8,0.2113022]
[1753353400186,0.474,3603.2,3601.8,0.464]
[1753353400488,2.77557457,3602.9,3602.2,2.77604982]
[1753353400650,2.77557457,3602.9,3601.8,1.2541]
[1753353400651,2.77577305,3602.6,3601.8,0.20819911]
[1753353400833,1.292,3602.5,3601.1,0.8301]
[1753353401035,0.818,3602.3,3601.2,4.468]
[1753353401287,2.77616426,3602.1,3601.4,2.77664697]
[1753353401437,2.77616426,3602.1,3601.5,4.468]
[1753353401759,2.77616426,3602.1,3601.1,0.04]
[1753353401760,0.8147,3601.9,3601.6,4.467]
[1753353402076,1.2887,3601.9,3601.6,4.467]
[1753353402373,0.474,3601.8,3601.6,4.467]
[1753353403083,0.8147,3601.9,3601.6,7.24349363]
[1753353403239,0.474,3602.2,3601.8,2.77638958]
[1753353403434,0.7554,3602.8,3602.0,0.55]
[1753353403638,2.81483625,3603.9,3602.1,4.466]
[1753353403639,0.7554,3602.3,3602.1,4.466]
[1753353403839,0.474,3602.2,3602.1,4.466]
[1753353404038,2.77616102,3602.1,3602.0,4.466]
[1753353404281,0.474,3602.1,3602.0,4.466]
[1753353404810,0.474,3602.1,3601.8,2.77637127]
[1753353405013,0.7554,3602.3,3601.9,4.466]
[1753353405215,1.2294,3602.3,3601.9,4.466]
[1753353405377,0.7554,3602.3,3602.0,0.55]
[1753353405599,0.7554,3602.3,3602.1,2.77613623]
[1753353405823,0.7681,3602.7,3602.3,2.7759487]
[1753353406021,0.7681,3602.7,3602.2,7.24205416]
[1753353406315,0.7681,3602.7,3602.2,4.466]
[1753353406518,0.8172,3603.1,3602.6,2.77571524]
[1753353406676,0.8172,3603.1,3602.6,7.24071524]
[1753353406879,3.59260611,3603.1,3602.6,4.465]
[1753353407080,0.474,3603.0,3602.6,4.465]
[1753353407520,0.8172,3603.1,3602.6,4.465]
[1753353407877,8.48034827,3603.0,3602.6,4.465]
[1753353408106,2.775696,3602.7,3602.6,4.465]
[1753353408380,3.249696,3602.7,3602.6,4.465]
[1753353408881,3.57867305,3602.6,3601.7,2.7764648]
[1753353409082,2.77608211,3602.2,3601.4,3.0]
[1753353409322,2.77608211,3602.2,3601.8,0.1392]
[1753353409526,0.1392,3602.3,3601.9,4.464]
[1753353409838,0.6132,3602.3,3601.9,4.464]
[1753353410048,2.7763125,3601.9,3601.8,0.1392]
[1753353410206,0.8033,3601.9,3601.5,0.1392]
[1753353410395,3.25038958,3601.8,3601.5,0.1392]
[1753353410590,3.2417685,3601.7,3601.5,0.1392]
[1753353411035,2.77641516,3601.8,3601.5,0.1392]
[1753353411355,3.24178283,3601.7,3601.5,0.1392]
[1753353411914,0.4653,3601.7,3601.5,0.1392]
[1753353412118,0.8033,3601.9,3601.5,0.1392]
[1753353412329,0.4653,3602.4,3601.7,2.91563553]
[1753353412330,0.9088,3602.2,3601.7,2.91563553]
[1753353412533,3.54570159,3602.2,3601.8,4.463]
[1753353412690,3.54570159,3602.2,3601.2,0.4588]
[1753353412691,2.77623542,3602.0,3601.9,4.463]
[1753353412887,3.38073542,3602.0,3601.9,4.463]
[1753353413729,0.1392,3602.0,3601.9,4.463]
[1753353414523,0.7696,3602.2,3601.9,7.2393125]
[1753353414900,0.7696,3602.2,3601.9,4.463]
[1753353415106,0.4653,3602.1,3601.9,4.463]
[1753353415321,3.24146919,3602.1,3601.9,4.463]
[1753353415495,0.4653,3602.0,3601.9,4.463]
[1753353415829,0.002,3602.0,3601.9,4.463]
[1753353416644,0.002,3602.0,3601.8,0.1392]
[1753353417019,0.4673,3602.0,3601.8,0.1392]
[1753353417749,0.4653,3601.9,3601.8,0.1392]
[1753353417968,2.77639949,3601.8,3601.6,4.462]
[1753353418167,2.77669281,3601.5,3601.4,4.461]
[1753353418452,3.24199281,3601.5,3601.4,4.461]
[1753353418863,0.4653,3601.5,3601.4,4.461]
[1753353419237,2.91577394,3601.6,3601.4,4.461]
[1753353419238,0.1392,3601.6,3601.4,4.461]
[1753353420464,0.002,3602.0,3601.6,2.77654375]
[1753353420643,0.002,3602.0,3601.8,2.77634117]
[1753353420854,0.002,3602.0,3601.9,4.46]
[1753353421953,2.77650395,3601.7,3601.0,0.7784]
[1753353422167,0.03470679,3601.6,3601.1,0.04]
[1753353422371,0.6045,3601.5,3601.1,0.04]
[1753353422542,0.1392,3601.5,3601.2,4.459]
[1753353422746,2.77639368,3601.8,3601.2,7.23582788]
[1753353423054,0.002,3602.0,3601.3,5.4261]
[1753353423259,0.002,3602.0,3601.9,2.7763125]
[1753353423575,0.002,3602.0,3601.9,4.459]
[1753353424244,0.002,3602.0,3601.9,7.2353125]
[1753353424495,0.002,3602.0,3601.9,4.459]
[1753353425169,0.002,3602.0,3601.9,7.2353125]
[1753353425570,0.002,3602.0,3601.9,4.458]
[1753353425869,2.77823542,3602.0,3601.9,4.458]
[1753353426172,0.002,3602.0,3601.9,4.458]
[1753353426867,0.002,3602.0,3601.7,0.1392]
[1753353427071,0.002,3602.0,3601.2,2.7767854]
[1753353427072,3.24356412,3602.0,3601.8,4.458]
[1753353427274,3.24356412,3602.0,3601.9,4.457]
[1753353427872,0.4673,3602.0,3601.9,4.457]
[1753353428069,0.002,3602.0,3601.9,4.457]
[1753353428870,0.002,3602.0,3601.6,0.1392]
[1753353429046,0.761,3601.8,3601.1,0.04]
[1753353429244,2.77654608,3601.6,3601.3,0.1392]
[1753353429560,0.4653,3601.6,3601.3,0.1392]
[1753353429753,2.77648349,3601.7,3601.3,0.1392]
[1753353429965,0.9002,3601.8,3601.3,0.1392]
[1753353430145,0.4653,3601.7,3601.3,0.1392]
[1753353430343,2.77654375,3601.6,3601.3,0.1392]
[1753353431048,2.77663823,3601.5,3601.3,0.1392]
[1753353431249,2.77656552,3601.6,3601.3,0.1392]
[1753353431844,0.03470583,3601.7,3601.3,0.1392]
[1753353431845,2.81124219,3601.7,3601.3,0.1392]
[1753353432058,2.77676703,3601.4,3601.1,0.1802]
[1753353432269,2.77678328,3601.3,3601.1,0.041]
[1753353432482,2.77678328,3601.3,3601.2,4.456]
[1753353432982,2.77678328,3601.3,3601.1,0.041]
[1753353433152,2.77662728,3601.5,3601.1,0.041]
[1753353433361,3.59675216,3601.2,3601.1,0.041]
[1753353433568,3.77066281,3601.2,3601.1,0.041]
[1753353433777,4.23596281,3601.2,3601.1,0.041]
[1753353434683,4.20125216,3601.2,3601.1,0.041]
[1753353435084,3.59654805,3601.5,3601.1,0.041]
[1753353435453,2.77671412,3601.4,3601.1,0.041]
[1753353435860,2.77670235,3601.4,3601.1,0.041]
[1753353436396,2.77685216,3601.2,3601.1,0.041]
[1753353436771,3.24209177,3601.3,3601.1,0.041]
[1753353436966,3.24215216,3601.2,3601.1,0.041]
[1753353438259,2.77685216,3601.2,3601.1,0.041]
[1753353438620,3.99705216,3601.2,3601.1,0.041]
[1753353438913,14.53391448,3601.0,3600.9,0.001]
[1753353439405,14.99921448,3601.0,3600.9,0.001]
[1753353440369,19.45221448,3601.0,3600.9,0.001]
[1753353440771,2.77762346,3600.2,3600.1,0.041]
[1753353441099,3.55032346,3600.2,3600.1,0.041]
[1753353441880,3.99702346,3600.2,3600.1,0.041]
[1753353443090,6.99702346,3600.2,3600.1,0.041]
[1753353445074,7.13622346,3600.2,3600.1,0.041]
[1753353445679,11.58722346,3600.2,3600.1,0.041]
[1753353446568,0.1392,3600.2,3600.1,0.041]
[1753353446767,2.77741653,3600.5,3600.1,0.041]
[1753353446970,0.1392,3600.4,3600.1,0.041]
[1753353447198,5.2574,3600.6,3600.1,0.041]
[1753353447199,2.77762346,3600.2,3600.1,0.041]
[1753353447404,2.91682346,3600.2,3600.1,0.041]
[1753353447592,4.19592346,3600.2,3600.1,0.041]
[1753353448282,6.61040927,3599.7,3599.6,0.001]
[1753353448478,2.77839519,3599.2,3599.1,0.041]
[1753353448719,2.77816928,3599.5,3599.1,0.041]
[1753353448877,4.451,3599.4,3599.1,0.041]
[1753353449077,0.4467,3600.0,3599.1,0.041]
[1753353449078,0.8133,3600.0,3599.3,0.55]
[1753353449319,2.77795514,3599.8,3599.3,0.55]
[1753353449480,0.03472318,3599.9,3599.1,0.5035]
[1753353449806,2.77805088,3599.7,3599.1,0.5035]
[1753353450115,4.45,3600.0,3599.1,3.28195585]
[1753353450116,2.77794992,3599.8,3599.1,3.28195585]
[1753353450316,2.77794992,3599.8,3599.2,2.77838043]
[1753353450609,2.77794992,3599.8,3599.1,3.28194534]
[1753353451179,2.77802619,3599.7,3599.1,0.5035]
[1753353451495,4.45,3600.0,3599.1,0.5035]
[1753353451814,2.77730832,3600.7,3599.2,0.7933]
[1753353451815,0.7966,3600.7,3599.2,0.7933]
[1753353451986,4.45,3600.5,3599.5,0.55]
[1753353452194,8.0020081,3600.8,3599.5,0.55]
[1753353452195,0.7966,3601.0,3600.1,0.7933]
[1753353452402,4.45,3600.9,3600.1,0.7933]
[1753353452580,2.77716063,3600.8,3600.1,4.03350061]
[1753353452899,7.22718354,3600.8,3600.1,1.2558]
[1753353453107,4.45,3600.8,3600.1,1.2558]
[1753353453293,0.7966,3601.0,3600.1,1.2558]
[1753353453494,8.0020081,3600.8,3600.1,0.7933]
[1753353453819,2.77736428,3600.6,3600.1,0.7933]
[1753353453993,0.0347174,3600.5,3599.9,0.4625]
[1753353454182,2.77763372,3600.2,3599.4,4.449]
[1753353454375,2.81227698,3600.1,3599.4,7.22722616]
[1753353454607,2.81227698,3600.1,3599.5,2.77815568]
[1753353454914,8.0020081,3600.3,3599.5,0.4625]
[1753353455113,2.7777964,3600.0,3599.5,0.4625]
[1753353455314,8.0020081,3600.3,3599.5,3.24062487]
[1753353455491,2.7776449,3600.2,3599.5,3.24062487]
[1753353455813,0.03472125,3600.1,3599.5,0.4625]
[1753353456315,0.8022,3600.6,3599.5,0.4625]
[1753353456316,0.789,3600.9,3599.6,1.3473]
[1753353456488,2.77710285,3600.9,3600.1,2.77765336]
[1753353456694,4.448,3601.0,3600.1,2.77764588]
[1753353456695,2.77721312,3600.8,3600.1,2.77764588]
[1753353456889,2.77721312,3600.8,3600.2,0.4625]
[1753353457103,2.77708707,3600.9,3600.2,0.4625]
[1753353457290,2.77692927,3601.1,3600.3,2.77753557]
[1753353457498,4.448,3601.0,3600.4,0.8296]
[1753353457696,2.77730849,3600.7,3600.4,0.8296]
[1753353458089,4.448,3601.0,3600.4,0.8296]
[1753353458418,2.77675822,3601.4,3600.7,2.77722972]
[1753353458621,0.7815,3601.5,3600.7,2.77722972]
[1753353458917,2.77670559,3601.4,3600.8,2.77714978]
[1753353459484,0.042,3601.9,3600.9,0.7737]
[1753353459686,0.042,3601.9,3601.2,0.7943]
[1753353459889,0.042,3601.9,3601.8,2.77638958]
[1753353460309,0.042,3601.9,3601.8,3.78888958]
[1753353460509,0.042,3601.9,3601.8,4.58318958]
[1753353460819,0.042,3601.9,3601.8,0.7943]
[1753353461124,0.042,3601.9,3601.7,4.446]
[1753353461586,0.042,3601.9,3601.5,3.57086859]
[1753353461784,0.042,3601.9,3601.6,4.446]
[1753353462034,0.042,3601.9,3601.8,2.77638958]
[1753353462208,0.042,3601.9,3601.8,3.32638958]
[1753353462604,0.042,3602.9,3602.5,2.7758501]
[1753353462818,0.042,3602.9,3602.5,11.5406501]
[1753353462987,1e-08,3602.6,3602.5,12.0031501]
[1753353463184,1e-08,3602.6,3602.5,15.0597811]
[1753353463410,0.042,3602.9,3602.8,4.13691896]
[1753353463904,0.042,3602.9,3602.8,4.59941896]
[1753353464408,0.042,3602.9,3602.8,9.04441896]
[1753353464828,0.042,3602.9,3602.8,12.04441896]
[1753353464996,0.002,3604.4,3603.0,3.32546489]
[1753353465185,0.002,3604.4,3603.0,12.42397489]
[1753353465386,0.002,3604.4,3603.0,11.34003989]
[1753353465812,2.77640589,3604.4,3603.0,7.55306489]
[1753353466017,0.002,3604.4,3603.0,7.55306489]
[1753353466336,2.7763978,3604.4,3603.0,7.55306489]
[1753353466498,2.77457204,3604.2,3603.0,11.99606489]
[1753353466694,0.002,3604.4,3604.2,0.7649]
[1753353466894,0.002,3604.4,3604.3,4.443]
[1753353467296,0.002,3604.4,3604.2,0.7649]
[1753353467501,0.002,3604.4,3604.3,4.442]
[1753353468105,0.002,3604.4,3604.3,4.441]
[1753353468730,0.002,3604.4,3604.3,7.21546383]
[1753353468933,0.002,3604.4,3604.3,9.2798]
[1753353469101,0.002,3604.4,3604.3,9.4182]
[1753353469295,0.002,3604.4,3604.3,12.19266383]
[1753353469811,0.002,3604.4,3604.3,9.4182]
[1753353470212,0.002,3604.4,3604.3,12.19266383]
[1753353470411,0.002,3604.4,3604.3,9.4182]
[1753353470610,0.002,3604.4,3604.3,4.9772]
[1753353470952,0.002,3604.4,3604.3,7.61326383]
[1753353471099,0.002,3604.4,3604.3,12.05326383]
[1753353471844,0.002,3604.4,3604.3,9.2778]
[1753353472331,0.002,3604.4,3604.3,12.05226383]
[1753353478348,1e-08,3604.4,3604.3,12.05226383]
[1753353478550,0.04,3604.9,3604.8,14.328852]
[1753353478551,1e-08,3604.9,3604.8,14.328852]
[1753353478743,1e-08,3604.9,3604.8,18.925852]
[1753353479043,1e-08,3604.9,3604.8,17.429158]
[1753353479647,0.002,3605.2,3604.8,17.429158]
[1753353479648,1e-08,3605.2,3605.1,7.15564815]
[1753353479850,1e-08,3605.2,3605.1,21.58628515]
[1753353480155,1e-08,3605.2,3605.1,13.95136315]
[1753353480322,1e-08,3605.2,3605.1,12.06364815]
[1753353480739,1e-08,3605.2,3605.1,16.64897015]
[1753353481934,1e-08,3605.2,3605.1,15.31828015]
[1753353484126,0.002,3606.7,3606.6,7.1332945]
[1753353484327,0.002,3606.7,3606.6,11.5662945]
[1753353484624,0.002,3606.7,3606.6,12.1776945]
[1753353485326,0.002,3606.7,3606.6,12.38201334]
[1753353486763,0.002,3606.7,3606.6,11.09741334]
[1753353487334,0.002,3606.7,3606.6,11.57041334]
[1753353487661,0.04,3607.9,3606.6,11.57041334]
[1753353487662,1.22650344,3608.8,3607.9,0.798]
[1753353487873,0.042,3608.9,3608.8,2.77100421]
[1753353488171,0.042,3608.9,3608.8,11.97750421]
[1753353488570,0.042,3608.9,3608.8,4.7745]
[1753353488746,0.042,3608.9,3608.8,10.95838418]
[1753353489073,0.042,3608.9,3608.8,11.43138418]
[1753353490671,0.042,3608.9,3608.8,10.95838418]
[1753353490970,0.042,3608.9,3608.8,10.95738418]
[1753353491940,0.042,3608.9,3608.8,11.43038418]
[1753353492262,0.042,3608.9,3608.8,11.42838418]
[1753353493966,0.042,3608.9,3608.8,10.95538418]
[1753353494173,0.042,3608.9,3608.8,5.97638418]
[1753353494468,0.042,3608.9,3608.8,10.40538418]
[1753353495232,0.042,3608.9,3608.8,10.87838418]
[1753353495538,0.002,3609.7,3609.6,3.32039007]
[1753353495733,0.002,3609.7,3609.6,4.5664]
[1753353496036,0.4507,3609.7,3609.6,4.5664]
[1753353496265,0.4507,3609.7,3608.8,3.44931189]
[1753353496266,2.77046682,3609.5,3607.8,11.48780164]
[1753353496473,0.4507,3609.7,3607.8,4.82580164]
[1753353496474,2.77115949,3608.6,3607.8,4.82580164]
[1753353496639,0.1384,3608.2,3607.9,4.428]
[1753353497041,0.4487,3608.1,3607.9,4.428]
[1753353497262,0.7771,3608.3,3607.9,4.428]
[1753353497450,0.48334331,3608.2,3607.8,0.1384]
[1753353497660,3.2548227,3608.2,3607.9,4.428]
[1753353497869,2.9445227,3608.2,3608.0,4.428]
[1753353498068,0.17304331,3608.2,3608.0,4.428]
[1753353498268,0.7771,3608.3,3608.1,4.5664]
[1753353498444,0.48334331,3608.2,3607.1,0.04]
[1753353498642,2.77160014,3608.1,3607.8,0.1384]
[1753353498867,3.25498587,3608.0,3607.1,0.24390513]
[1753353499078,0.1384,3607.8,3607.3,2.91050382]
[1753353499283,0.1384,3607.8,3607.3,3.1384]
[1753353499446,0.4487,3607.7,3607.3,3.1384]
[1753353499649,0.4487,3607.6,3607.3,3.1384]
[1753353499977,0.4487,3607.6,3607.3,5.91050227]
[1753353500150,0.4487,3607.5,3607.3,5.9105426]
[1753353500342,0.4487,3607.5,3607.3,3.1384]
[1753353500543,0.4729,3607.4,3607.3,3.1384]
[1753353500882,1.2507,3607.4,3607.3,4.428]
[1753353501378,1.2507,3607.4,3607.2,0.1384]
[1753353501584,2.77097973,3608.9,3607.1,0.04]
[1753353501585,0.7778,3607.9,3607.3,4.5664]
[1753353501762,2.94487436,3607.8,3607.3,0.1384]
[1753353501963,2.77188251,3607.7,3607.4,4.428]
[1753353502277,2.77206347,3607.5,3607.1,0.04]
[1753353502477,0.7778,3607.3,3607.1,0.04]
[1753353503047,1.2507,3607.3,3607.1,0.04]
[1753353503257,0.7778,3607.3,3607.1,0.04]
[1753353503463,0.4729,3607.2,3607.1,0.04]
[1753353503852,0.50755291,3607.2,3607.1,4.468]
[1753353504163,0.4729,3607.2,3607.1,4.468]
[1753353505575,0.002,3607.8,3607.7,2.7718491]
[1753353505882,0.002,3607.8,3607.1,4.468]
[1753353505883,0.002,3607.8,3607.6,4.428]
[1753353506050,3.2447491,3607.7,3607.6,4.428]
[1753353506249,3.2447491,3607.7,3607.4,4.428]
[1753353506250,0.50754811,3607.7,3607.4,4.428]
[1753353506445,1.2281,3607.6,3607.3,7.20009994]
[1753353506686,1.2281,3607.6,3607.3,4.428]
[1753353506846,0.7552,3607.6,3607.3,4.428]
[1753353507266,0.4729,3607.5,3607.3,4.428]
[1753353507466,0.4729,3607.5,3607.3,7.20015465]
[1753353507662,0.4729,3607.5,3607.3,4.428]
[1753353508052,0.4729,3607.4,3607.3,4.428]
[1753353508453,0.7552,3607.6,3607.3,7.20015646]
[1753353508781,0.4729,3607.5,3607.3,4.428]
[1753353508984,0.7552,3607.6,3607.3,4.428]
[1753353509186,0.4729,3607.5,3607.3,4.428]
[1753353509387,0.7552,3607.6,3607.1,0.04]
[1753353509566,0.4729,3607.5,3607.3,2.77215397]
[1753353509766,0.7552,3607.6,3607.3,2.77215397]
[1753353510250,0.7552,3607.6,3607.2,4.428]
[1753353510450,0.7552,3607.6,3607.2,7.20020417]
[1753353510930,0.002,3607.8,3607.3,2.77209505]
[1753353511212,3.2466802,3607.8,3607.2,7.20021677]
[1753353511429,0.4749,3607.8,3607.3,2.77215177]
[1753353511631,0.002,3607.8,3607.3,2.77215177]
[1753353511839,0.4729,3607.7,3607.3,2.77215177]
[1753353512132,0.002,3607.8,3607.6,2.7718749]
[1753353512294,0.002,3607.8,3607.6,7.1998749]
[1753353512630,0.002,3607.8,3607.6,4.428]
[1753353512974,0.002,3607.8,3607.7,2.7718491]
[1753353513231,0.002,3607.8,3607.2,0.4452]
[1753353513232,0.002,3607.8,3607.3,2.77215646]
[1753353513436,0.002,3607.8,3607.5,4.428]
[1753353513437,0.4729,3607.7,3607.5,4.428]
[1753353513630,0.03464907,3607.6,3607.5,4.428]
[1753353513775,0.50754907,3607.6,3607.5,4.428]
[1753353514395,3.279475,3607.6,3607.5,4.428]
[1753353514813,3.279475,3607.6,3607.1,0.04]
[1753353514814,0.03464907,3607.6,3607.3,4.428]
[1753353515107,0.002,3607.8,3607.3,7.20009502]
[1753353515475,0.1384,3607.7,3607.3,4.428]
[1753353516111,0.4729,3607.6,3607.3,4.428]
[1753353516472,0.03465003,3607.5,3607.3,4.428]
[1753353516706,0.1384,3607.7,3607.3,4.428]
[1753353517010,0.002,3607.8,3607.5,0.7808]
[1753353517239,0.002,3607.8,3607.5,2.91037238]
[1753353517377,0.002,3607.8,3607.5,0.1384]
[1753353517577,0.002,3607.8,3607.1,0.8173]
[1753353517578,0.002,3607.8,3607.1,0.04]
[1753353517779,0.1404,3607.8,3607.1,0.04]
[1753353518008,2.91040505,3607.5,3607.2,4.428]
[1753353518194,0.03465099,3607.4,3607.2,4.428]
[1753353519290,0.1384,3607.5,3607.2,4.428]
[1753353520520,0.002,3607.8,3607.4,0.1384]
[1753353520691,0.002,3607.8,3607.6,2.77190376]
[1753353520886,0.002,3607.8,3607.5,4.428]
[1753353521224,0.002,3607.8,3607.5,4.5664]
[1753353521400,0.4749,3607.8,3607.5,0.1384]
[1753353521604,2.77379819,3607.8,3607.5,4.428]
[1753353521803,0.6113,3607.7,3607.5,4.428]
[1753353521998,0.1384,3607.7,3607.5,4.428]
[1753353523092,0.002,3607.8,3607.6,0.55]
[1753353523289,0.002,3607.8,3607.7,4.2295491]
[1753353523490,0.002,3607.8,3607.7,7.6747491]
[1753353524391,0.002,3607.8,3607.1,0.04]
[1753353524392,0.4749,3607.8,3607.1,0.04]
[1753353524622,0.03464811,3607.7,3607.3,0.001]
[1753353524791,0.7989,3607.6,3607.3,0.001]
[1753353525004,2.80666888,3607.5,3607.3,0.001]
[1753353525200,0.03465003,3607.5,3607.3,0.001]
[1753353525416,2.80666802,3607.5,3607.3,0.001]
[1753353525629,0.03465003,3607.5,3607.3,0.001]
[1753353525942,0.7989,3607.6,3607.3,0.001]
[1753353526092,0.002,3607.8,3607.4,5.4232]
[1753353526297,0.002,3607.8,3607.4,7.75003485]
[1753353526503,0.002,3607.8,3607.5,2.77199098]
[1753353527222,0.002,3607.8,3607.4,7.75003063]
[1753353527418,0.4749,3607.8,3607.4,4.428]
[1753353527734,2.77201124,3607.5,3607.3,0.001]
[1753353527892,1.2743,3607.7,3607.3,0.001]
[1753353528093,0.4729,3607.5,3607.3,0.001]
[1753353528310,3.24496802,3607.5,3607.3,0.001]
[1753353528503,3.57326272,3607.7,3607.3,0.001]
[1753353528708,0.8014,3607.7,3607.3,2.7731551]
[1753353529937,0.8014,3607.7,3607.3,0.001]
[1753353530098,0.03664715,3607.8,3607.3,0.001]
[1753353530417,0.002,3607.8,3607.3,2.77313003]
[1753353530621,0.03664715,3607.8,3607.3,2.77313003]
[1753353531531,0.03664715,3607.8,3607.4,2.77205912]
[1753353531722,0.03664715,3607.8,3607.5,4.429]
[1753353531723,0.002,3607.8,3607.5,4.429]
[1753353532420,2.7718491,3607.7,3607.5,4.429]
[1753353532600,2.77185095,3607.7,3607.5,4.429]
[1753353533335,0.002,3607.8,3607.5,4.429]
[1753353533638,2.77187434,3607.7,3607.5,4.429]
[1753353534013,2.77379509,3607.8,3607.5,4.429]
[1753353534194,2.77379509,3607.8,3607.7,2.7718491]
[1753353534195,0.002,3607.8,3607.7,2.7718491]
[1753353534398,0.002,3607.8,3607.6,0.5777]
[1753353534637,0.002,3607.8,3607.5,4.429]
[1753353534638,0.002,3607.8,3607.5,4.428]
[1753353534941,0.002,3607.8,3607.5,7.63928613]
[1753353535438,0.002,3607.8,3607.5,4.428]
[1753353535729,2.77378011,3607.8,3607.5,4.428]
[1753353535942,3.24568011,3607.8,3607.5,4.428]
[1753353536147,0.03464811,3607.7,3607.5,4.428]
[1753353536438,0.6123,3607.8,3607.5,4.428]
[1753353536650,0.03464811,3607.7,3607.3,0.1394]
[1753353536801,2.80656257,3607.7,3607.4,4.428]
[1753353536996,3.27846257,3607.7,3607.3,0.001]
[1753353537237,2.77193702,3607.6,3607.3,0.001]
[1753353537435,0.03465003,3607.5,3607.3,0.001]
[1753353537816,2.80658885,3607.6,3607.3,0.001]
[1753353538041,0.03464907,3607.6,3607.3,0.001]
[1753353539301,0.4719,3607.7,3607.3,0.001]
[1753353539530,0.1404,3607.8,3607.3,0.4403]
[1753353539755,2.91220933,3607.8,3607.3,0.4403]
[1753353539950,2.91220933,3607.8,3607.4,4.428]
[1753353540154,0.1404,3607.8,3607.4,4.428]
[1753353540744,0.1404,3607.8,3607.4,4.8673]
[1753353541137,2.91217932,3607.8,3607.4,4.8673]
[1753353541325,0.1404,3607.8,3607.4,4.8673]
[1753353541524,0.1404,3607.8,3607.4,7.63937471]
[1753353541728,0.002,3607.8,3607.7,2.7718491]
[1753353541933,0.002,3607.8,3607.7,8.7116491]
[1753353542447,0.002,3607.8,3607.3,0.001]
[1753353542612,0.4719,3607.7,3607.3,0.001]
[1753353542949,0.1384,3607.4,3607.3,0.001]
[1753353543156,0.002,3607.8,3607.3,0.001]
[1753353543307,0.002,3607.8,3607.5,2.7719429]
[1753353543513,0.002,3607.8,3607.5,2.77195746]
[1753353543736,0.002,3607.8,3607.5,4.427]
[1753353544120,0.002,3607.8,3607.5,0.4393]
[1753353544446,0.002,3607.8,3607.7,2.7718491]
[1753353544633,0.002,3607.8,3607.6,0.4393]
[1753353544820,0.002,3607.8,3607.4,4.427]
[1753353545019,0.002,3607.8,3607.5,2.77199871]
[1753353545221,0.002,3607.8,3607.5,1.257]
[1753353545536,0.002,3607.8,3607.5,0.4393]
[1753353545911,0.002,3607.8,3607.5,2.77199013]
[1753353546114,0.002,3607.8,3607.6,2.77189858]
[1753353546525,0.002,3607.8,3607.5,0.4393]
[1753353546819,0.002,3607.8,3607.6,2.77190323]
[1753353547157,0.002,3607.8,3607.5,3.21127049]
[1753353547358,0.002,3607.8,3607.5,0.4393]
[1753353547563,0.002,3607.8,3607.5,3.21127269]
[1753353547747,0.002,3607.8,3607.6,2.77191479]
[1753353547947,0.002,3607.8,3607.5,3.21128185]
[1753353548150,0.002,3607.8,3607.7,2.7718491]
[1753353548464,0.002,3607.8,3607.7,3.3218491]
[1753353548677,0.002,3607.8,3607.7,3.7611491]
[1753353549660,0.002,3607.8,3607.7,8.1881491]
[1753353550369,0.002,3607.8,3607.5,7.19893788]
[1753353550674,0.002,3607.8,3607.5,4.427]
[1753353551155,0.7882,3607.8,3607.5,4.427]
[1753353551327,0.03464811,3607.7,3607.5,4.427]
[1753353551528,0.7882,3607.8,3607.5,7.19892959]
[1753353551848,0.002,3607.8,3607.5,7.19892959]
[1753353552047,0.002,3607.8,3607.5,4.427]
[1753353553027,0.1384,3607.7,3607.3,2.77314842]
[1753353553232,0.1384,3607.7,3607.3,3.42210798]
[1753353553647,0.1384,3607.7,3607.3,0.64995956]
[1753353553845,0.1384,3607.7,3607.3,3.42211518]
[1753353554129,0.1384,3607.7,3607.4,4.427]
[1753353554816,0.1384,3607.7,3607.3,0.21065956]
[1753353554817,0.03464907,3607.6,3607.3,0.001]
[1753353555067,2.91047961,3607.4,3607.3,0.001]
[1753353555269,2.9451306,3607.4,3607.3,0.001]
[1753353555453,2.91047961,3607.4,3607.3,0.001]
[1753353555775,3.38237961,3607.4,3607.3,0.001]
[1753353555958,2.91047961,3607.4,3607.3,0.001]
[1753353556358,3.38237961,3607.4,3607.3,0.001]
[1753353558278,0.1384,3607.4,3607.3,0.001]
[1753353558453,0.1384,3607.7,3607.4,2.77207961]
[1753353558654,0.1384,3607.7,3607.3,0.001]
[1753353558856,0.1384,3607.7,3607.3,0.4403]
[1753353559058,0.1384,3607.7,3607.4,4.427]
[1753353559241,0.1384,3607.7,3607.4,7.19907267]
[1753353559942,0.1384,3607.7,3607.4,4.427]
[1753353560740,2.77200318,3607.5,3607.3,4.428]
[1753353560958,2.9451306,3607.4,3607.3,4.428]
[1753353561358,0.17305099,3607.4,3607.3,4.428]
[1753353561758,3.3762306,3607.4,3607.3,4.428]
[1753353561975,3.34157961,3607.4,3607.3,4.428]
[1753353562391,4.09777961,3607.4,3607.3,4.428]
[1753353562544,4.09777961,3607.4,3607.3,0.001]
[1753353563543,3.66667961,3607.4,3607.3,0.001]